[Event "Titled Tuesday Blitz August 08 Early 2023"]
[White "Samarth J Rao"]
[Black "Steindl, Johannes"]
[WhiteFideId "46652370"]
[BlackFideId "1643266"]
[WhiteElo "2159"]
[BlackElo "2291"]
[Result "0-1"]
[Round "11"]
[TimeControl "180+1"]
[Date "2023.08.08"]
[WhiteClock "0:00:15"]
[BlackClock "0:00:16"]
[Board "163"]

1. d4 {[%clk 0:03:00]}  Nf6 {[%clk 0:02:58]} 2. e3 {[%clk 0:03:01]}  b6 {[%clk 0:02:56]} 3. Bd3 {[%clk 0:03:02]}  Bb7 {[%clk 0:02:56]} 4. Nf3 {[%clk 0:03:01]}  d6 {[%clk 0:02:53]} 5. O-O {[%clk 0:03:01]}  Nbd7 {[%clk 0:02:53]} 6. Re1 {[%clk 0:03:00]}  e5 {[%clk 0:02:54]} 7. dxe5 {[%clk 0:02:56]}  dxe5 {[%clk 0:02:48]} 8. e4 {[%clk 0:02:55]}  Bc5 {[%clk 0:02:48]} 9. Nc3 {[%clk 0:02:53]}  Ng4 {[%clk 0:02:45]} 10. Re2 {[%clk 0:02:45]}  h5 {[%clk 0:02:16]} 11. h3 {[%clk 0:02:41]}  Qe7 {[%clk 0:02:03]} 12. Nd5 {[%clk 0:02:32]}  Bxd5 {[%clk 0:02:01]} 13. exd5 {[%clk 0:02:33]}  Nxf2 {[%clk 0:01:55]} 14. Rxf2 {[%clk 0:02:29]}  Bxf2+ {[%clk 0:01:56]} 15. Kxf2 {[%clk 0:02:28]}  e4 {[%clk 0:01:56]} 16. Nd4 {[%clk 0:02:13]}  Qf6+ {[%clk 0:01:50]} 17. Nf3 {[%clk 0:01:39]}  exd3 {[%clk 0:01:44]} 18. Qxd3 {[%clk 0:01:35]}  O-O-O {[%clk 0:01:12]} 19. Bg5 {[%clk 0:01:29]}  Qxb2 {[%clk 0:01:12]} 20. Bxd8 {[%clk 0:01:19]}  Qxa1 {[%clk 0:01:08]} 21. Qa6+ {[%clk 0:01:13]}  Kxd8 {[%clk 0:01:07]} 22. Qxa7 {[%clk 0:01:09]}  g5 {[%clk 0:01:01]} 23. Qa8+ {[%clk 0:00:56]}  Ke7 {[%clk 0:01:01]} 24. Qc6 {[%clk 0:00:57]}  g4 {[%clk 0:00:54]} 25. Nd2 {[%clk 0:00:50]}  Qf6+ {[%clk 0:00:49]} 26. Qxf6+ {[%clk 0:00:47]}  Nxf6 {[%clk 0:00:50]} 27. c4 {[%clk 0:00:45]}  Ra8 {[%clk 0:00:49]} 28. hxg4 {[%clk 0:00:39]}  hxg4 {[%clk 0:00:49]} 29. Kg3 {[%clk 0:00:33]}  Rxa2 {[%clk 0:00:48]} 30. Nf1 {[%clk 0:00:31]}  Ra3+ {[%clk 0:00:45]} 31. Kf4 {[%clk 0:00:29]}  b5 {[%clk 0:00:31]} 32. Ne3 {[%clk 0:00:25]}  bxc4 {[%clk 0:00:29]} 33. Nf5+ {[%clk 0:00:25]}  Kd7 {[%clk 0:00:28]} 34. Ke5 {[%clk 0:00:26]}  Ne8 {[%clk 0:00:24]} 35. Nd4 {[%clk 0:00:23]}  c3 {[%clk 0:00:20]} 36. Nc2 {[%clk 0:00:22]}  Ra2 {[%clk 0:00:19]} 37. Ne1 {[%clk 0:00:20]}  Re2+ {[%clk 0:00:18]} 38. Kd4 {[%clk 0:00:18]}  Rxe1 {[%clk 0:00:18]} 39. Kxc3 {[%clk 0:00:19]}  Re2 {[%clk 0:00:17]} 40. Kd4 {[%clk 0:00:20]}  Rxg2 {[%clk 0:00:17]} 41. Ke3 {[%clk 0:00:20]}  Rg3+ {[%clk 0:00:16]} 42. Kf4 {[%clk 0:00:20]}  Rd3 {[%clk 0:00:17]} 43. Kxg4 {[%clk 0:00:20]}  Rxd5 {[%clk 0:00:17]} 44. Kf4 {[%clk 0:00:19]}  Ke6 {[%clk 0:00:18]} 45. Ke4 {[%clk 0:00:20]}  Nf6+ {[%clk 0:00:18]} 46. Ke3 {[%clk 0:00:19]}  c5 {[%clk 0:00:19]} 47. Kf4 {[%clk 0:00:19]}  c4 {[%clk 0:00:19]} 48. Kf3 {[%clk 0:00:19]}  c3 {[%clk 0:00:20]} 49. Ke2 {[%clk 0:00:17]}  c2 {[%clk 0:00:21]} 50. Kf3 {[%clk 0:00:17]}  c1=Q {[%clk 0:00:20]} 51. Kg3 {[%clk 0:00:18]}  Rd3+ {[%clk 0:00:17]} 52. Kh4 {[%clk 0:00:15]}  Qh6# {[%clk 0:00:16]} 0-1


[Site "https://www.chess.com"]

[Event "Titled Tuesday Blitz August 08 Early 2023"]
[White "Floresvillar Gonzalez, Luis Migu"]
[Black "Joshi, Pankaj"]
[WhiteFideId "5100542"]
[BlackFideId "5006210"]
[WhiteElo "2138"]
[BlackElo "2206"]
[Result "0-1"]
[Round "11"]
[TimeControl "180+1"]
[Date "2023.08.08"]
[WhiteClock "0:00:08"]
[BlackClock "0:00:11"]
[Board "165"]

1. e4 {[%clk 0:03:00]}  c6 {[%clk 0:03:00]} 2. Bc4 {[%clk 0:02:59]}  d5 {[%clk 0:03:00]} 3. exd5 {[%clk 0:03:00]}  cxd5 {[%clk 0:03:00]} 4. Bb3 {[%clk 0:03:00]}  Nf6 {[%clk 0:03:00]} 5. d4 {[%clk 0:03:00]}  Bf5 {[%clk 0:02:57]} 6. Bf4 {[%clk 0:02:55]}  e6 {[%clk 0:02:58]} 7. Bxb8 {[%clk 0:02:50]}  Rxb8 {[%clk 0:02:57]} 8. Nf3 {[%clk 0:02:44]}  Bd6 {[%clk 0:02:56]} 9. Nbd2 {[%clk 0:02:41]}  h6 {[%clk 0:02:54]} 10. O-O {[%clk 0:02:40]}  Qc7 {[%clk 0:02:50]} 11. Re1 {[%clk 0:02:38]}  Bg4 {[%clk 0:02:47]} 12. Qe2 {[%clk 0:02:26]}  Bxh2+ {[%clk 0:02:45]} 13. Kh1 {[%clk 0:02:23]}  Bd6 {[%clk 0:02:30]} 14. Ba4+ {[%clk 0:02:22]}  Kf8 {[%clk 0:02:09]} 15. c3 {[%clk 0:02:13]}  h5 {[%clk 0:02:09]} 16. Qf1 {[%clk 0:01:56]}  h4 {[%clk 0:02:08]} 17. Ne5 {[%clk 0:01:54]}  h3 {[%clk 0:02:01]} 18. g3 {[%clk 0:01:42]}  Bxe5 {[%clk 0:01:59]} 19. dxe5 {[%clk 0:01:39]}  Ne4 {[%clk 0:01:59]} 20. Nxe4 {[%clk 0:01:38]}  Bf3+ {[%clk 0:01:58]} 21. Kh2 {[%clk 0:01:37]}  Bxe4 {[%clk 0:01:42]} 22. f3 {[%clk 0:01:33]}  b5 {[%clk 0:01:18]} 23. Bxb5 {[%clk 0:01:21]}  Bxf3 {[%clk 0:01:16]} 24. Qxf3 {[%clk 0:01:19]}  Rxb5 {[%clk 0:01:15]} 25. Re2 {[%clk 0:01:18]}  Qb7 {[%clk 0:01:05]} 26. Rf1 {[%clk 0:01:02]}  Rxb2 {[%clk 0:00:50]} 27. Qxf7+ {[%clk 0:01:02]}  Qxf7 {[%clk 0:00:48]} 28. Rxf7+ {[%clk 0:01:02]}  Kxf7 {[%clk 0:00:49]} 29. Rxb2 {[%clk 0:01:02]}  Rc8 {[%clk 0:00:48]} 30. Rb7+ {[%clk 0:01:00]}  Kg6 {[%clk 0:00:47]} 31. Rxa7 {[%clk 0:00:58]}  Rxc3 {[%clk 0:00:47]} 32. Re7 {[%clk 0:00:54]}  Kf5 {[%clk 0:00:34]} 33. Rxg7 {[%clk 0:00:48]}  d4 {[%clk 0:00:32]} 34. Kxh3 {[%clk 0:00:46]}  d3 {[%clk 0:00:32]} 35. Rd7 {[%clk 0:00:45]}  Ke4 {[%clk 0:00:28]} 36. Rd6 {[%clk 0:00:42]}  Kxe5 {[%clk 0:00:27]} 37. Rd8 {[%clk 0:00:41]}  Ke4 {[%clk 0:00:26]} 38. a4 {[%clk 0:00:41]}  Ra3 {[%clk 0:00:23]} 39. g4 {[%clk 0:00:36]}  d2+ {[%clk 0:00:19]} 40. Kh4 {[%clk 0:00:32]}  Rd3 {[%clk 0:00:20]} 41. Re8 {[%clk 0:00:22]}  d1=Q {[%clk 0:00:17]} 42. Rxe6+ {[%clk 0:00:23]}  Kd5 {[%clk 0:00:16]} 43. Rg6 {[%clk 0:00:20]}  Qh1+ {[%clk 0:00:16]} 44. Kg5 {[%clk 0:00:20]}  Re3 {[%clk 0:00:14]} 45. a5 {[%clk 0:00:19]}  Re5+ {[%clk 0:00:14]} 46. Kf6 {[%clk 0:00:19]}  Qf1+ {[%clk 0:00:14]} 47. Kg7 {[%clk 0:00:18]}  Re7+ {[%clk 0:00:13]} 48. Kh6 {[%clk 0:00:17]}  Re6 {[%clk 0:00:11]} 49. Rxe6 {[%clk 0:00:14]}  Kxe6 {[%clk 0:00:12]} 50. g5 {[%clk 0:00:14]}  Qh3+ {[%clk 0:00:12]} 51. Kg7 {[%clk 0:00:13]}  Qf5 {[%clk 0:00:11]} 52. g6 {[%clk 0:00:13]}  Qxa5 {[%clk 0:00:12]} 53. Kh8 {[%clk 0:00:12]}  Qd8+ {[%clk 0:00:11]} 54. Kh7 {[%clk 0:00:11]}  Qe7+ {[%clk 0:00:11]} 55. g7 {[%clk 0:00:11]}  Kf6 {[%clk 0:00:10]} 56. Kh8 {[%clk 0:00:08]}  Qxg7# {[%clk 0:00:11]} 0-1


[Site "https://www.chess.com"]

[Event "Titled Tuesday Blitz August 08 Early 2023"]
[White "Ghosh, Chanchal Kumer"]
[Black "campochess"]
[WhiteFideId "10201858"]
[WhiteElo "2088"]
[BlackElo "2185"]
[Result "1-0"]
[Round "11"]
[TimeControl "180+1"]
[Date "2023.08.08"]
[WhiteClock "0:01:14"]
[BlackClock "0:00:08"]
[Board "166"]

1. e4 {[%clk 0:03:00]}  c5 {[%clk 0:02:59]} 2. Nf3 {[%clk 0:03:00]}  Nc6 {[%clk 0:02:59]} 3. d4 {[%clk 0:03:01]}  cxd4 {[%clk 0:02:59]} 4. Nxd4 {[%clk 0:03:01]}  e5 {[%clk 0:02:55]} 5. Nb5 {[%clk 0:02:58]}  a6 {[%clk 0:02:55]} 6. Nd6+ {[%clk 0:02:58]}  Bxd6 {[%clk 0:02:55]} 7. Qxd6 {[%clk 0:02:58]}  Qe7 {[%clk 0:02:55]} 8. Qd2 {[%clk 0:02:57]}  Nf6 {[%clk 0:02:54]} 9. Nc3 {[%clk 0:02:55]}  d6 {[%clk 0:02:53]} 10. Be2 {[%clk 0:02:54]}  Be6 {[%clk 0:02:53]} 11. O-O {[%clk 0:02:53]}  Rd8 {[%clk 0:02:53]} 12. Bf3 {[%clk 0:02:52]}  Nd4 {[%clk 0:02:51]} 13. Qe3 {[%clk 0:02:43]}  Nxc2 {[%clk 0:02:49]} 14. Qg5 {[%clk 0:02:43]}  O-O {[%clk 0:02:32]} 15. Rb1 {[%clk 0:02:38]}  Rfe8 {[%clk 0:02:31]} 16. Qh4 {[%clk 0:02:30]}  Nd4 {[%clk 0:02:16]} 17. Bg5 {[%clk 0:02:24]}  Nxf3+ {[%clk 0:02:15]} 18. gxf3 {[%clk 0:02:23]}  h6 {[%clk 0:02:11]} 19. Bxh6 {[%clk 0:02:21]}  Nh7 {[%clk 0:02:06]} 20. Qxe7 {[%clk 0:02:18]}  Rxe7 {[%clk 0:02:06]} 21. Be3 {[%clk 0:02:18]}  f5 {[%clk 0:01:53]} 22. Rfd1 {[%clk 0:02:11]}  f4 {[%clk 0:01:51]} 23. Bb6 {[%clk 0:02:10]}  Rdd7 {[%clk 0:01:51]} 24. Rd2 {[%clk 0:02:09]}  Nf6 {[%clk 0:01:49]} 25. Rbd1 {[%clk 0:02:08]}  Ne8 {[%clk 0:01:49]} 26. Nd5 {[%clk 0:02:06]}  Bxd5 {[%clk 0:01:44]} 27. Rxd5 {[%clk 0:02:07]}  Re6 {[%clk 0:01:42]} 28. Ba5 {[%clk 0:02:04]}  Kf7 {[%clk 0:01:34]} 29. Bc3 {[%clk 0:01:59]}  Nc7 {[%clk 0:01:29]} 30. Rxe5 {[%clk 0:01:57]}  Nb5 {[%clk 0:01:18]} 31. Rf5+ {[%clk 0:01:55]}  Kg6 {[%clk 0:01:15]} 32. Rxf4 {[%clk 0:01:54]}  Nxc3 {[%clk 0:01:15]} 33. bxc3 {[%clk 0:01:54]}  Rc7 {[%clk 0:01:14]} 34. Rd2 {[%clk 0:01:54]}  Rxc3 {[%clk 0:01:12]} 35. Kg2 {[%clk 0:01:54]}  Rc5 {[%clk 0:01:07]} 36. Rg4+ {[%clk 0:01:53]}  Kf6 {[%clk 0:01:05]} 37. h4 {[%clk 0:01:52]}  b5 {[%clk 0:01:04]} 38. Re2 {[%clk 0:01:48]}  a5 {[%clk 0:01:03]} 39. f4 {[%clk 0:01:48]}  Kf7 {[%clk 0:01:02]} 40. f5 {[%clk 0:01:45]}  Rh6 {[%clk 0:01:01]} 41. f4 {[%clk 0:01:44]}  b4 {[%clk 0:01:00]} 42. e5 {[%clk 0:01:43]}  dxe5 {[%clk 0:00:37]} 43. fxe5 {[%clk 0:01:44]}  Rc7 {[%clk 0:00:35]} 44. e6+ {[%clk 0:01:39]}  Kf8 {[%clk 0:00:31]} 45. Rd2 {[%clk 0:01:29]}  Ke8 {[%clk 0:00:28]} 46. Rgd4 {[%clk 0:01:27]}  Rh5 {[%clk 0:00:22]} 47. Rd8+ {[%clk 0:01:23]}  Ke7 {[%clk 0:00:21]} 48. R2d7+ {[%clk 0:01:23]}  Rxd7 {[%clk 0:00:21]} 49. Rxd7+ {[%clk 0:01:24]}  Kf8 {[%clk 0:00:20]} 50. Rf7+ {[%clk 0:01:21]}  Kg8 {[%clk 0:00:18]} 51. Kg3 {[%clk 0:01:22]}  Rh6 {[%clk 0:00:18]} 52. Ra7 {[%clk 0:01:20]}  Rh5 {[%clk 0:00:17]} 53. Kg4 {[%clk 0:01:19]}  Rh6 {[%clk 0:00:15]} 54. Ra8+ {[%clk 0:01:15]}  Kh7 {[%clk 0:00:14]} 55. e7 {[%clk 0:01:16]}  Rc6 {[%clk 0:00:13]} 56. e8=Q {[%clk 0:01:15]}  Rc4+ {[%clk 0:00:11]} 57. Kg5 {[%clk 0:01:15]}  Rxh4 {[%clk 0:00:08]} 58. Qh8# {[%clk 0:01:14]} 1-0


[Site "https://www.chess.com"]

[Event "Titled Tuesday Blitz August 08 Early 2023"]
[White "Seifert, Henryk"]
[Black "Guevara Sanchez, Erick Marvin"]
[WhiteFideId "1100963"]
[BlackFideId "6700136"]
[WhiteElo "2023"]
[BlackElo "2109"]
[Result "0-1"]
[Round "11"]
[TimeControl "180+1"]
[Date "2023.08.08"]
[WhiteClock "0:00:00"]
[BlackClock "0:00:27"]
[Board "168"]

1. e4 {[%clk 0:03:00]}  c5 {[%clk 0:02:59]} 2. Nf3 {[%clk 0:03:00]}  Nc6 {[%clk 0:02:59]} 3. Bb5 {[%clk 0:02:56]}  Nd4 {[%clk 0:02:59]} 4. Nxd4 {[%clk 0:02:53]}  cxd4 {[%clk 0:02:59]} 5. O-O {[%clk 0:02:53]}  e6 {[%clk 0:02:59]} 6. d3 {[%clk 0:02:51]}  a6 {[%clk 0:02:58]} 7. Bc4 {[%clk 0:02:48]}  b5 {[%clk 0:02:59]} 8. Bb3 {[%clk 0:02:47]}  Bc5 {[%clk 0:02:58]} 9. Qh5 {[%clk 0:02:41]}  Qc7 {[%clk 0:02:57]} 10. f4 {[%clk 0:02:36]}  Bb7 {[%clk 0:02:54]} 11. f5 {[%clk 0:02:33]}  Nf6 {[%clk 0:02:25]} 12. Qg5 {[%clk 0:02:22]}  O-O {[%clk 0:02:22]} 13. Bf4 {[%clk 0:02:11]}  e5 {[%clk 0:02:21]} 14. Bg3 {[%clk 0:02:03]}  h6 {[%clk 0:02:06]} 15. Qh4 {[%clk 0:02:00]}  d5 {[%clk 0:02:05]} 16. Nd2 {[%clk 0:01:57]}  dxe4 {[%clk 0:02:02]} 17. Nxe4 {[%clk 0:01:49]}  Bxe4 {[%clk 0:01:40]} 18. dxe4 {[%clk 0:01:49]}  d3+ {[%clk 0:01:40]} 19. Kh1 {[%clk 0:01:44]}  d2 {[%clk 0:01:36]} 20. Rad1 {[%clk 0:01:38]}  Rad8 {[%clk 0:01:32]} 21. Bf2 {[%clk 0:01:23]}  a5 {[%clk 0:01:26]} 22. c3 {[%clk 0:01:13]}  a4 {[%clk 0:01:14]} 23. Bc2 {[%clk 0:01:13]}  a3 {[%clk 0:01:13]} 24. bxa3 {[%clk 0:00:54]}  Bxf2 {[%clk 0:01:10]} 25. Qxf2 {[%clk 0:00:41]}  Qxc3 {[%clk 0:01:10]} 26. Bb1 {[%clk 0:00:36]}  Rd4 {[%clk 0:01:06]} 27. Qe2 {[%clk 0:00:33]}  Rfd8 {[%clk 0:00:58]} 28. h3 {[%clk 0:00:30]}  Qxa3 {[%clk 0:00:49]} 29. Qxb5 {[%clk 0:00:23]}  Nh5 {[%clk 0:00:39]} 30. Qxe5 {[%clk 0:00:20]}  Ng3+ {[%clk 0:00:36]} 31. Kg1 {[%clk 0:00:10]}  Qe3+ {[%clk 0:00:35]} 32. Rf2 {[%clk 0:00:05]}  Qe1+ {[%clk 0:00:32]} 33. Kh2 {[%clk 0:00:00]}  Qxf2 {[%clk 0:00:27]} 0-1


[Site "https://www.chess.com"]